[Event "Titled Tuesday Blitz July 18 Late 2023"]
[White "Vujacic, Igor"]
[Black "Fonseca Manrique, Enrique"]
[WhiteFideId "932620"]
[BlackFideId "5114330"]
[WhiteElo "2313"]
[BlackElo "2589"]
[Result "1-0"]
[Round "4"]
[TimeControl "180+2"]
[Date "2023.07.18"]
[WhiteClock "0:00:02"]
[BlackClock "0:00:00"]
[Board "82"]

1. d4 {[%clk 0:02:59]}  Nf6 {[%clk 0:02:58]} 2. Bf4 {[%clk 0:02:59]}  g6 {[%clk 0:02:56]} 3. Nc3 {[%clk 0:02:58]}  d5 {[%clk 0:02:56]} 4. e3 {[%clk 0:02:59]}  Bg7 {[%clk 0:02:56]} 5. h4 {[%clk 0:02:59]}  h5 {[%clk 0:02:57]} 6. Nf3 {[%clk 0:02:59]}  O-O {[%clk 0:02:57]} 7. Be2 {[%clk 0:02:58]}  c5 {[%clk 0:02:57]} 8. Nb5 {[%clk 0:02:58]}  Na6 {[%clk 0:02:44]} 9. c3 {[%clk 0:02:58]}  Bf5 {[%clk 0:02:43]} 10. a4 {[%clk 0:02:54]}  Ne4 {[%clk 0:02:36]} 11. Qb3 {[%clk 0:02:36]}  Bg4 {[%clk 0:01:54]} 12. Rd1 {[%clk 0:02:32]}  c4 {[%clk 0:01:46]} 13. Qa2 {[%clk 0:02:22]}  Qa5 {[%clk 0:01:37]} 14. O-O {[%clk 0:01:59]}  Rfd8 {[%clk 0:01:18]} 15. Rfe1 {[%clk 0:01:54]}  Bd7 {[%clk 0:01:13]} 16. b4 {[%clk 0:01:27]}  cxb3 {[%clk 0:00:52]} 17. Qxb3 {[%clk 0:01:23]}  e6 {[%clk 0:00:36]} 18. c4 {[%clk 0:01:12]}  dxc4 {[%clk 0:00:30]} 19. Bxc4 {[%clk 0:01:11]}  Rdc8 {[%clk 0:00:31]} 20. Rb1 {[%clk 0:00:57]}  Bc6 {[%clk 0:00:22]} 21. Rec1 {[%clk 0:00:52]}  Nd2 {[%clk 0:00:19]} 22. Nxd2 {[%clk 0:00:48]}  Qxd2 {[%clk 0:00:20]} 23. Nd6 {[%clk 0:00:42]}  Rf8 {[%clk 0:00:19]} 24. Nxb7 {[%clk 0:00:38]}  Be4 {[%clk 0:00:19]} 25. Bxa6 {[%clk 0:00:36]}  Bxb1 {[%clk 0:00:19]} 26. Rxb1 {[%clk 0:00:36]}  Rac8 {[%clk 0:00:16]} 27. Nc5 {[%clk 0:00:35]}  e5 {[%clk 0:00:15]} 28. Bg5 {[%clk 0:00:24]}  Rb8 {[%clk 0:00:13]} 29. Qxb8 {[%clk 0:00:22]}  Rxb8 {[%clk 0:00:13]} 30. Rxb8+ {[%clk 0:00:23]}  Kh7 {[%clk 0:00:14]} 31. Nd7 {[%clk 0:00:20]}  exd4 {[%clk 0:00:13]} 32. Nf6+ {[%clk 0:00:20]}  Bxf6 {[%clk 0:00:13]} 33. Bxf6 {[%clk 0:00:21]}  g5 {[%clk 0:00:11]} 34. hxg5 {[%clk 0:00:16]}  Qe1+ {[%clk 0:00:11]} 35. Kh2 {[%clk 0:00:16]}  Qd1 {[%clk 0:00:05]} 36. exd4 {[%clk 0:00:14]}  Qd2 {[%clk 0:00:02]} 37. Kh3 {[%clk 0:00:03]}  Kg6 {[%clk 0:00:00]} 38. Bb7 {[%clk 0:00:02]} 1-0


[Site "https://www.chess.com"]

[Event "Titled Tuesday Blitz July 18 Late 2023"]
[White "Dragomirescu, Robin-Alexandru"]
[Black "StarkyNZ"]
[WhiteFideId "1213849"]
[WhiteElo "2587"]
[BlackElo "2306"]
[Result "0-1"]
[Round "4"]
[TimeControl "180+2"]
[Date "2023.07.18"]
[WhiteClock "0:00:05"]
[BlackClock "0:00:10"]
[Board "84"]

1. b3 {[%clk 0:03:00]}  e5 {[%clk 0:02:58]} 2. Bb2 {[%clk 0:02:59]}  d6 {[%clk 0:02:58]} 3. e3 {[%clk 0:02:59]}  Nc6 {[%clk 0:02:57]} 4. Nf3 {[%clk 0:02:51]}  Bf5 {[%clk 0:02:54]} 5. Bb5 {[%clk 0:02:43]}  Ne7 {[%clk 0:02:52]} 6. d4 {[%clk 0:02:43]}  e4 {[%clk 0:02:49]} 7. Nfd2 {[%clk 0:02:38]}  d5 {[%clk 0:02:47]} 8. c4 {[%clk 0:02:30]}  a6 {[%clk 0:02:45]} 9. Bxc6+ {[%clk 0:02:30]}  Nxc6 {[%clk 0:02:40]} 10. a3 {[%clk 0:02:18]}  dxc4 {[%clk 0:02:38]} 11. bxc4 {[%clk 0:02:16]}  Qg5 {[%clk 0:02:36]} 12. g3 {[%clk 0:02:08]}  O-O-O {[%clk 0:02:34]} 13. d5 {[%clk 0:02:05]}  Nb8 {[%clk 0:02:15]} 14. Nc3 {[%clk 0:02:03]}  h5 {[%clk 0:02:12]} 15. Ncxe4 {[%clk 0:01:49]}  Qg6 {[%clk 0:02:12]} 16. Qf3 {[%clk 0:01:46]}  Re8 {[%clk 0:02:05]} 17. Nc3 {[%clk 0:01:28]}  Bg4 {[%clk 0:02:05]} 18. Qf4 {[%clk 0:01:10]}  Bd6 {[%clk 0:02:04]} 19. Qd4 {[%clk 0:01:11]}  Qc2 {[%clk 0:01:59]} 20. Rb1 {[%clk 0:01:01]}  Be5 {[%clk 0:01:56]} 21. Qe4 {[%clk 0:01:01]}  Qxd2+ {[%clk 0:01:47]} 22. Kxd2 {[%clk 0:00:58]}  Bxc3+ {[%clk 0:01:47]} 23. Bxc3 {[%clk 0:00:58]}  Rxe4 {[%clk 0:01:47]} 24. Bxg7 {[%clk 0:00:58]}  Rd8 {[%clk 0:01:39]} 25. f3 {[%clk 0:00:49]}  Bxf3 {[%clk 0:01:36]} 26. Rhf1 {[%clk 0:00:49]}  Bg4 {[%clk 0:01:24]} 27. Bd4 {[%clk 0:00:50]}  f5 {[%clk 0:01:20]} 28. Rf4 {[%clk 0:00:33]}  Rde8 {[%clk 0:01:18]} 29. Rh1 {[%clk 0:00:25]}  Nd7 {[%clk 0:01:18]} 30. h3 {[%clk 0:00:25]}  Rxf4 {[%clk 0:01:08]} 31. gxf4 {[%clk 0:00:26]}  Bf3 {[%clk 0:01:07]} 32. Rg1 {[%clk 0:00:27]}  Nb6 {[%clk 0:00:49]} 33. Kc3 {[%clk 0:00:25]}  Be2 {[%clk 0:00:48]} 34. Rg5 {[%clk 0:00:11]}  Nxc4 {[%clk 0:00:39]} 35. Rxf5 {[%clk 0:00:11]}  Nxe3 {[%clk 0:00:35]} 36. Rg5 {[%clk 0:00:10]}  Bf3 {[%clk 0:00:34]} 37. d6 {[%clk 0:00:06]}  Nd5+ {[%clk 0:00:33]} 38. Kc4 {[%clk 0:00:05]}  cxd6 {[%clk 0:00:28]} 39. Rxd5 {[%clk 0:00:03]}  Bxd5+ {[%clk 0:00:27]} 40. Kxd5 {[%clk 0:00:04]}  Kd7 {[%clk 0:00:27]} 41. f5 {[%clk 0:00:02]}  b5 {[%clk 0:00:17]} 42. f6 {[%clk 0:00:02]}  Rf8 {[%clk 0:00:10]} 43. h4 {[%clk 0:00:02]}  a5 {[%clk 0:00:10]} 44. Bb2 {[%clk 0:00:01]}  b4 {[%clk 0:00:09]} 45. axb4 {[%clk 0:00:02]}  axb4 {[%clk 0:00:10]} 46. Kc4 {[%clk 0:00:02]}  Ke6 {[%clk 0:00:09]} 47. Kxb4 {[%clk 0:00:02]}  Rxf6 {[%clk 0:00:09]} 48. Bxf6 {[%clk 0:00:03]}  Kxf6 {[%clk 0:00:10]} 49. Kc4 {[%clk 0:00:04]}  Ke5 {[%clk 0:00:10]} 50. Kd3 {[%clk 0:00:04]}  Kd5 {[%clk 0:00:11]} 51. Ke3 {[%clk 0:00:04]}  Kc4 {[%clk 0:00:11]} 52. Ke2 {[%clk 0:00:05]}  Kd4 {[%clk 0:00:10]} 53. Kd2 {[%clk 0:00:05]}  d5 {[%clk 0:00:09]} 54. Ke1 {[%clk 0:00:05]}  Ke3 {[%clk 0:00:10]} 55. Kd1 {[%clk 0:00:06]}  Kd3 {[%clk 0:00:10]} 56. Ke1 {[%clk 0:00:05]}  Kc2 {[%clk 0:00:10]} 0-1


[Site "https://www.chess.com"]

[Event "Titled Tuesday Blitz July 18 Late 2023"]
[White "Bartel, Michal"]
[Black "Francisco_Ferrari"]
[WhiteFideId "1119257"]
[WhiteElo "2576"]
[BlackElo "2194"]
[Result "1-0"]
[Round "4"]
[TimeControl "180+2"]
[Date "2023.07.18"]
[WhiteClock "0:02:14"]
[BlackClock "0:01:13"]
[Board "87"]

1. e4 {[%clk 0:02:56]}  c5 {[%clk 0:03:00]} 2. Ne2 {[%clk 0:02:55]}  a6 {[%clk 0:02:58]} 3. g3 {[%clk 0:02:56]}  b5 {[%clk 0:02:58]} 4. Bg2 {[%clk 0:02:56]}  Bb7 {[%clk 0:02:58]} 5. O-O {[%clk 0:02:56]}  g6 {[%clk 0:02:57]} 6. c3 {[%clk 0:02:54]}  Bg7 {[%clk 0:02:57]} 7. d4 {[%clk 0:02:52]}  d6 {[%clk 0:02:51]} 8. dxc5 {[%clk 0:02:49]}  dxc5 {[%clk 0:02:52]} 9. Qxd8+ {[%clk 0:02:49]}  Kxd8 {[%clk 0:02:53]} 10. Be3 {[%clk 0:02:49]}  Nd7 {[%clk 0:02:50]} 11. Rd1 {[%clk 0:02:48]}  Ke8 {[%clk 0:02:42]} 12. a4 {[%clk 0:02:40]}  b4 {[%clk 0:02:28]} 13. Nd2 {[%clk 0:02:39]}  Ngf6 {[%clk 0:02:04]} 14. cxb4 {[%clk 0:02:35]}  cxb4 {[%clk 0:02:05]} 15. Rac1 {[%clk 0:02:34]}  Ng4 {[%clk 0:01:58]} 16. Bd4 {[%clk 0:02:30]}  e5 {[%clk 0:01:46]} 17. Bc5 {[%clk 0:02:16]}  Nxc5 {[%clk 0:01:37]} 18. Rxc5 {[%clk 0:02:17]}  Ke7 {[%clk 0:01:13]} 19. Rc7+ {[%clk 0:02:14]} 1-0


[Site "https://www.chess.com"]

[Event "Titled Tuesday Blitz July 18 Late 2023"]
[White "Matinian, Nikita"]
[Black "Garcia Almaguer, Juan Manuel"]
[WhiteFideId "24129100"]
[BlackFideId "5110491"]
[WhiteElo "2732"]
[BlackElo "2454"]
[Result "1-0"]
[Round "4"]
[TimeControl "180+2"]
[Date "2023.07.18"]
[WhiteClock "0:00:10"]
[BlackClock "0:00:08"]
[Board "90"]

1. e4 {[%clk 0:02:57]}  e5 {[%clk 0:02:59]} 2. Nf3 {[%clk 0:02:57]}  Nc6 {[%clk 0:03:00]} 3. Bb5 {[%clk 0:02:57]}  a6 {[%clk 0:03:00]} 4. Ba4 {[%clk 0:02:58]}  Nf6 {[%clk 0:03:00]} 5. O-O {[%clk 0:02:58]}  Be7 {[%clk 0:02:56]} 6. d3 {[%clk 0:02:57]}  b5 {[%clk 0:02:54]} 7. Bb3 {[%clk 0:02:57]}  O-O {[%clk 0:02:55]} 8. a3 {[%clk 0:02:56]}  h6 {[%clk 0:02:54]} 9. Nc3 {[%clk 0:02:56]}  d6 {[%clk 0:02:52]} 10. h3 {[%clk 0:02:54]}  Be6 {[%clk 0:02:52]} 11. Nd5 {[%clk 0:02:53]}  Bxd5 {[%clk 0:02:40]} 12. exd5 {[%clk 0:02:54]}  Nb8 {[%clk 0:02:41]} 13. d4 {[%clk 0:02:40]}  e4 {[%clk 0:02:39]} 14. Nd2 {[%clk 0:02:40]}  Re8 {[%clk 0:02:39]} 15. Re1 {[%clk 0:02:41]}  Bf8 {[%clk 0:02:39]} 16. c3 {[%clk 0:02:39]}  Nbd7 {[%clk 0:02:34]} 17. Bc2 {[%clk 0:02:38]}  Nxd5 {[%clk 0:02:30]} 18. Nxe4 {[%clk 0:02:38]}  N7f6 {[%clk 0:02:23]} 19. Bd2 {[%clk 0:02:31]}  c5 {[%clk 0:02:21]} 20. dxc5 {[%clk 0:02:21]}  dxc5 {[%clk 0:02:22]} 21. Qf3 {[%clk 0:02:21]}  Qb6 {[%clk 0:02:08]} 22. Rad1 {[%clk 0:02:03]}  Rad8 {[%clk 0:02:07]} 23. Bc1 {[%clk 0:02:02]}  Nxe4 {[%clk 0:02:00]} 24. Bxe4 {[%clk 0:01:46]}  Nf6 {[%clk 0:02:00]} 25. Bc2 {[%clk 0:01:45]}  b4 {[%clk 0:01:45]} 26. c4 {[%clk 0:01:41]}  Rxe1+ {[%clk 0:01:29]} 27. Rxe1 {[%clk 0:01:40]}  a5 {[%clk 0:01:27]} 28. a4 {[%clk 0:01:34]}  Bd6 {[%clk 0:01:24]} 29. b3 {[%clk 0:01:32]}  Bb8 {[%clk 0:01:16]} 30. Bb2 {[%clk 0:01:29]}  Qd6 {[%clk 0:00:59]} 31. g3 {[%clk 0:01:29]}  Re8 {[%clk 0:00:46]} 32. Rd1 {[%clk 0:00:58]}  Qe6 {[%clk 0:00:46]} 33. Bf5 {[%clk 0:00:56]}  Qe7 {[%clk 0:00:27]} 34. Kg2 {[%clk 0:00:53]}  Rd8 {[%clk 0:00:22]} 35. Rxd8+ {[%clk 0:00:49]}  Qxd8 {[%clk 0:00:22]} 36. Qa8 {[%clk 0:00:46]}  Ne8 {[%clk 0:00:15]} 37. Be5 {[%clk 0:00:36]}  Bc7 {[%clk 0:00:16]} 38. Qxd8 {[%clk 0:00:33]}  Bxd8 {[%clk 0:00:16]} 39. Bd7 {[%clk 0:00:31]}  Bc7 {[%clk 0:00:17]} 40. Bb2 {[%clk 0:00:21]}  Nd6 {[%clk 0:00:17]} 41. Kf3 {[%clk 0:00:18]}  Kf8 {[%clk 0:00:17]} 42. h4 {[%clk 0:00:18]}  Ke7 {[%clk 0:00:17]} 43. Bh3 {[%clk 0:00:18]}  f6 {[%clk 0:00:17]} 44. Bc1 {[%clk 0:00:18]}  Nf7 {[%clk 0:00:18]} 45. Be3 {[%clk 0:00:17]}  Ne5+ {[%clk 0:00:18]} 46. Ke4 {[%clk 0:00:17]}  Kd6 {[%clk 0:00:18]} 47. Bf1 {[%clk 0:00:14]}  g5 {[%clk 0:00:18]} 48. Kf5 {[%clk 0:00:12]}  Bd8 {[%clk 0:00:17]} 49. h5 {[%clk 0:00:12]}  Nf3 {[%clk 0:00:14]} 50. Kg6 {[%clk 0:00:10]}  Nd4 {[%clk 0:00:11]} 51. Bxd4 {[%clk 0:00:10]}  cxd4 {[%clk 0:00:12]} 52. Kxh6 {[%clk 0:00:11]}  Ke5 {[%clk 0:00:11]} 53. Bd3 {[%clk 0:00:11]}  f5 {[%clk 0:00:11]} 54. Kg6 {[%clk 0:00:09]}  Bf6 {[%clk 0:00:11]} 55. Bxf5 {[%clk 0:00:09]}  g4 {[%clk 0:00:12]} 56. Bxg4 {[%clk 0:00:08]}  d3 {[%clk 0:00:12]} 57. f4+ {[%clk 0:00:08]}  Kd4 {[%clk 0:00:10]} 58. Kxf6 {[%clk 0:00:08]}  Kc3 {[%clk 0:00:11]} 59. h6 {[%clk 0:00:09]}  Kxb3 {[%clk 0:00:08]} 60. h7 {[%clk 0:00:10]} 1-0


[Site "https://www.chess.com"]

[Event "Titled Tuesday Blitz July 18 Late 2023"]
[White "Shuvalova, Polina"]
[Black "Delorme, Axel"]
[WhiteFideId "24171760"]
[BlackFideId "632023"]
[WhiteElo "2667"]
[BlackElo "2429"]
[Result "0-1"]
[Round "4"]
[TimeControl "180+2"]
[Date "2023.07.18"]
[WhiteClock "0:00:00"]
[BlackClock "0:00:14"]
[Board "91"]

1. e4 {[%clk 0:03:00]}  c5 {[%clk 0:02:59]} 2. Nf3 {[%clk 0:03:01]}  d6 {[%clk 0:03:00]} 3. c3 {[%clk 0:03:00]}  Nf6 {[%clk 0:03:00]} 4. Bd3 {[%clk 0:03:00]}  Nc6 {[%clk 0:02:52]} 5. O-O {[%clk 0:03:01]}  d5 {[%clk 0:02:42]} 6. e5 {[%clk 0:02:57]}  c4 {[%clk 0:02:42]} 7. Bc2 {[%clk 0:02:51]}  Nd7 {[%clk 0:02:41]} 8. e6 {[%clk 0:02:49]}  fxe6 {[%clk 0:02:40]} 9. d4 {[%clk 0:02:48]}  cxd3 {[%clk 0:02:39]} 10. Qxd3 {[%clk 0:02:44]}  Nf6 {[%clk 0:02:38]} 11. Re1 {[%clk 0:02:42]}  g6 {[%clk 0:02:34]} 12. Ba4 {[%clk 0:02:15]}  Bg7 {[%clk 0:02:21]} 13. Nd4 {[%clk 0:02:14]}  O-O {[%clk 0:02:17]} 14. Nd2 {[%clk 0:01:43]}  Qd6 {[%clk 0:01:57]} 15. N2f3 {[%clk 0:01:35]}  Ne4 {[%clk 0:01:51]} 16. Be3 {[%clk 0:01:24]}  e5 {[%clk 0:01:49]} 17. Nb5 {[%clk 0:01:17]}  Qd8 {[%clk 0:01:44]} 18. c4 {[%clk 0:01:15]}  e6 {[%clk 0:01:29]} 19. Rad1 {[%clk 0:01:09]}  a6 {[%clk 0:01:25]} 20. cxd5 {[%clk 0:00:55]}  axb5 {[%clk 0:01:18]} 21. Bb3 {[%clk 0:00:55]}  Nxf2 {[%clk 0:00:50]} 22. Bxf2 {[%clk 0:00:51]}  Nb4 {[%clk 0:00:50]} 23. Qxb5 {[%clk 0:00:48]}  Nxd5 {[%clk 0:00:50]} 24. Bxd5 {[%clk 0:00:36]}  exd5 {[%clk 0:00:51]} 25. Rxd5 {[%clk 0:00:36]}  Qe8 {[%clk 0:00:45]} 26. Qxe8 {[%clk 0:00:28]}  Rxe8 {[%clk 0:00:46]} 27. a3 {[%clk 0:00:26]}  e4 {[%clk 0:00:39]} 28. Ng5 {[%clk 0:00:21]}  Bxb2 {[%clk 0:00:36]} 29. Nxe4 {[%clk 0:00:20]}  Bf5 {[%clk 0:00:33]} 30. Nd6 {[%clk 0:00:11]}  Rxe1+ {[%clk 0:00:32]} 31. Bxe1 {[%clk 0:00:12]}  Be6 {[%clk 0:00:27]} 32. Rb5 {[%clk 0:00:12]}  Bd4+ {[%clk 0:00:27]} 33. Kh1 {[%clk 0:00:11]}  Rxa3 {[%clk 0:00:25]} 34. Rb1 {[%clk 0:00:08]}  b6 {[%clk 0:00:21]} 35. h3 {[%clk 0:00:07]}  Ra1 {[%clk 0:00:21]} 36. Rxa1 {[%clk 0:00:06]}  Bxa1 {[%clk 0:00:22]} 37. Bf2 {[%clk 0:00:06]}  Be5 {[%clk 0:00:20]} 38. Nb5 {[%clk 0:00:03]}  Bd7 {[%clk 0:00:17]} 39. Na3 {[%clk 0:00:02]}  b5 {[%clk 0:00:14]} 40. Kg1 {[%clk 0:00:01]}  b4 {[%clk 0:00:15]} 41. Nc4 {[%clk 0:00:01]}  b3 {[%clk 0:00:14]} 42. Be1 {[%clk 0:00:00]}  b2 {[%clk 0:00:14]} 0-1


[Site "https://www.chess.com"]

[Event "Titled Tuesday Blitz July 18 Late 2023"]
[White "brm72"]
[Black "cedchass2006"]
[WhiteElo "2586"]
[BlackElo "2403"]
[Result "1/2-1/2"]
[Round "4"]
[TimeControl "180+2"]
[Date "2023.07.18"]
[WhiteClock "0:00:02"]
[BlackClock "0:00:07"]
[Board "92"]

1. e4 {[%clk 0:03:00]}  e5 {[%clk 0:02:58]} 2. Nf3 {[%clk 0:03:00]}  Nc6 {[%clk 0:02:58]} 3. d4 {[%clk 0:03:01]}  exd4 {[%clk 0:02:59]} 4. Nxd4 {[%clk 0:03:01]}  Nf6 {[%clk 0:02:59]} 5. Nxc6 {[%clk 0:03:02]}  bxc6 {[%clk 0:02:59]} 6. e5 {[%clk 0:03:02]}  Qe7 {[%clk 0:02:59]} 7. Qe2 {[%clk 0:03:02]}  Nd5 {[%clk 0:03:00]} 8. h4 {[%clk 0:03:02]}  d6 {[%clk 0:02:59]} 9. c4 {[%clk 0:02:58]}  Nb6 {[%clk 0:02:58]} 10. exd6 {[%clk 0:02:59]}  Qxe2+ {[%clk 0:02:54]} 11. Bxe2 {[%clk 0:03:00]}  cxd6 {[%clk 0:02:50]} 12. Bf3 {[%clk 0:03:00]}  d5 {[%clk 0:02:47]} 13. cxd5 {[%clk 0:02:30]}  cxd5 {[%clk 0:02:47]} 14. O-O {[%clk 0:02:19]}  Be7 {[%clk 0:02:43]} 15. Re1 {[%clk 0:02:18]}  Be6 {[%clk 0:02:41]} 16. h5 {[%clk 0:02:14]}  O-O {[%clk 0:02:34]} 17. Nc3 {[%clk 0:02:10]}  Rac8 {[%clk 0:02:27]} 18. Be3 {[%clk 0:01:55]}  Bf6 {[%clk 0:02:26]} 19. Rad1 {[%clk 0:01:47]}  Nc4 {[%clk 0:02:19]} 20. Nxd5 {[%clk 0:01:43]}  Bxd5 {[%clk 0:02:17]} 21. Bxd5 {[%clk 0:01:41]}  Nxe3 {[%clk 0:02:13]} 22. Rxe3 {[%clk 0:01:41]}  Bxb2 {[%clk 0:02:12]} 23. Re7 {[%clk 0:01:40]}  a5 {[%clk 0:02:07]} 24. Bb3 {[%clk 0:01:35]}  Rc1 {[%clk 0:02:01]} 25. Rxc1 {[%clk 0:01:30]}  Bxc1 {[%clk 0:02:02]} 26. g3 {[%clk 0:01:21]}  Bd2 {[%clk 0:02:00]} 27. Kg2 {[%clk 0:01:21]}  Bb4 {[%clk 0:01:59]} 28. Rd7 {[%clk 0:01:19]}  g6 {[%clk 0:01:58]} 29. h6 {[%clk 0:01:17]}  Ba3 {[%clk 0:01:54]} 30. f4 {[%clk 0:01:16]}  Bc1 {[%clk 0:01:47]} 31. Kf3 {[%clk 0:01:16]}  g5 {[%clk 0:01:40]} 32. Kg4 {[%clk 0:01:10]}  gxf4 {[%clk 0:01:40]} 33. gxf4 {[%clk 0:01:11]}  Ba3 {[%clk 0:01:23]} 34. Ra7 {[%clk 0:01:06]}  Bb4 {[%clk 0:01:15]} 35. Kf5 {[%clk 0:01:06]}  Bc3 {[%clk 0:01:11]} 36. Rc7 {[%clk 0:01:05]}  Bb2 {[%clk 0:01:08]} 37. Rc5 {[%clk 0:01:05]}  Ra8 {[%clk 0:01:00]} 38. Bd5 {[%clk 0:01:02]}  Rd8 {[%clk 0:00:40]} 39. Rxa5 {[%clk 0:01:01]}  Bc3 {[%clk 0:00:37]} 40. Rb5 {[%clk 0:01:01]}  Bb4 {[%clk 0:00:30]} 41. Bb3 {[%clk 0:01:00]}  Bf8 {[%clk 0:00:28]} 42. Rb7 {[%clk 0:00:59]}  Bxh6 {[%clk 0:00:25]} 43. Rxf7 {[%clk 0:00:39]}  Rf8 {[%clk 0:00:17]} 44. Rxf8+ {[%clk 0:00:31]}  Kxf8 {[%clk 0:00:17]} 45. a4 {[%clk 0:00:28]}  Ke7 {[%clk 0:00:17]} 46. Bg8 {[%clk 0:00:25]}  Kd6 {[%clk 0:00:16]} 47. Bxh7 {[%clk 0:00:20]}  Kc5 {[%clk 0:00:16]} 48. Ke5 {[%clk 0:00:19]}  Bg7+ {[%clk 0:00:14]} 49. Ke6 {[%clk 0:00:18]}  Bh6 {[%clk 0:00:14]} 50. Ke5 {[%clk 0:00:14]}  Bg7+ {[%clk 0:00:14]} 51. Ke6 {[%clk 0:00:02]}  Bh6 {[%clk 0:00:13]} 52. Kf5 {[%clk 0:00:02]}  Kb4 {[%clk 0:00:10]} 53. Kg4 {[%clk 0:00:02]}  Bxf4 {[%clk 0:00:07]} 54. Kxf4 {[%clk 0:00:02]}  Kxa4 {[%clk 0:00:07]} 1/2-1/2


[Site "https://www.chess.com"]

[Event "Titled Tuesday Blitz July 18 Late 2023"]
[White "Bueno, Alfeu Junior Varela"]
[Black "Jimenez Almeida, Luis David"]
[WhiteFideId "2108879"]
[BlackFideId "22242244"]
[WhiteElo "2401"]
[BlackElo "2576"]
[Result "1-0"]
[Round "4"]
[TimeControl "180+2"]
[Date "2023.07.18"]
[WhiteClock "0:00:49"]
[BlackClock "0:01:16"]
[Board "93"]

1. e4 {[%clk 0:03:00]}  c5 {[%clk 0:02:58]} 2. Nc3 {[%clk 0:03:01]}  a6 {[%clk 0:02:57]} 3. g3 {[%clk 0:03:00]}  b5 {[%clk 0:02:57]} 4. Bg2 {[%clk 0:03:01]}  Bb7 {[%clk 0:02:58]} 5. f4 {[%clk 0:02:57]}  e6 {[%clk 0:02:58]} 6. Qe2 {[%clk 0:02:56]}  b4 {[%clk 0:02:55]} 7. Na4 {[%clk 0:02:55]}  d5 {[%clk 0:02:55]} 8. exd5 {[%clk 0:02:49]}  Bxd5 {[%clk 0:02:55]} 9. f5 {[%clk 0:02:13]}  Bxg2 {[%clk 0:02:47]} 10. Qxg2 {[%clk 0:02:13]}  Nd7 {[%clk 0:02:31]} 11. fxe6 {[%clk 0:02:11]}  fxe6 {[%clk 0:02:32]} 12. Nf3 {[%clk 0:02:10]}  Ngf6 {[%clk 0:02:32]} 13. Ng5 {[%clk 0:02:05]}  Rc8 {[%clk 0:01:58]} 14. Nxe6 {[%clk 0:01:59]}  Qe7 {[%clk 0:01:58]} 15. Qe2 {[%clk 0:01:59]}  Kf7 {[%clk 0:01:56]} 16. Ng5+ {[%clk 0:01:50]}  Kg6 {[%clk 0:01:55]} 17. Qxe7 {[%clk 0:01:37]}  Bxe7 {[%clk 0:01:56]} 18. Nf3 {[%clk 0:01:32]}  c4 {[%clk 0:01:49]} 19. O-O {[%clk 0:01:25]}  Rhd8 {[%clk 0:01:45]} 20. b3 {[%clk 0:01:22]}  cxb3 {[%clk 0:01:41]} 21. cxb3 {[%clk 0:01:23]}  Nb6 {[%clk 0:01:32]} 22. Ne5+ {[%clk 0:01:14]}  Kh5 {[%clk 0:01:28]} 23. d4 {[%clk 0:00:50]}  Nxa4 {[%clk 0:01:23]} 24. Rf5+ {[%clk 0:00:49]}  g5 {[%clk 0:01:15]} 25. Rxg5+ {[%clk 0:00:49]}  Kh6 {[%clk 0:01:16]} 26. Nf7# {[%clk 0:00:49]} 1-0


[Site "https://www.chess.com"]

[Event "Titled Tuesday Blitz July 18 Late 2023"]
[White "Hajiyev, Kanan"]
[Black "Silva Lucena, Cristian"]
[WhiteFideId "13404148"]
[BlackFideId "2232588"]
[WhiteElo "2556"]
[BlackElo "2391"]
[Result "1-0"]
[Round "4"]
[TimeControl "180+2"]
[Date "2023.07.18"]
[WhiteClock "0:02:02"]
[BlackClock "0:02:18"]
[Board "95"]

1. d4 {[%clk 0:03:00]}  Nf6 {[%clk 0:02:59]} 2. Nf3 {[%clk 0:03:01]}  g6 {[%clk 0:03:00]} 3. c4 {[%clk 0:03:02]}  Bg7 {[%clk 0:03:00]} 4. g3 {[%clk 0:03:03]}  O-O {[%clk 0:03:01]} 5. Bg2 {[%clk 0:03:04]}  d6 {[%clk 0:03:01]} 6. O-O {[%clk 0:03:04]}  Bf5 {[%clk 0:02:59]} 7. b3 {[%clk 0:03:05]}  c5 {[%clk 0:02:58]} 8. Bb2 {[%clk 0:03:06]}  cxd4 {[%clk 0:02:57]} 9. Nxd4 {[%clk 0:03:07]}  Be6 {[%clk 0:02:57]} 10. Nxe6 {[%clk 0:03:06]}  fxe6 {[%clk 0:02:54]} 11. Bxb7 {[%clk 0:03:07]}  Nbd7 {[%clk 0:02:55]} 12. Bxa8 {[%clk 0:03:04]}  Qxa8 {[%clk 0:02:55]} 13. Nd2 {[%clk 0:03:00]}  h5 {[%clk 0:02:54]} 14. Nf3 {[%clk 0:02:59]}  e5 {[%clk 0:02:54]} 15. Ng5 {[%clk 0:02:58]}  Nc5 {[%clk 0:02:49]} 16. Qc2 {[%clk 0:02:44]}  e4 {[%clk 0:02:45]} 17. b4 {[%clk 0:02:36]}  Ncd7 {[%clk 0:02:40]} 18. Ne6 {[%clk 0:02:34]}  Rf7 {[%clk 0:02:39]} 19. c5 {[%clk 0:02:22]}  dxc5 {[%clk 0:02:33]} 20. bxc5 {[%clk 0:02:22]}  Qc6 {[%clk 0:02:33]} 21. Qc4 {[%clk 0:02:04]}  Nb6 {[%clk 0:02:28]} 22. Qb3 {[%clk 0:02:03]}  Nbd5 {[%clk 0:02:26]} 23. Nd8 {[%clk 0:02:02]}  Qe6 {[%clk 0:02:18]} 24. Nxe6 {[%clk 0:02:02]} 1-0


[Site "https://www.chess.com"]